[Event "Early-Titled-Tuesday-Blitz-May-28-2024"]
[Site "Chess.com"]
[Date "2024.05.28"]
[Round "5"]
[White "Bykov_Egor"]
[Black "AwareIdea"]
[Result "1-0"]
[WhiteElo "2655"]
[BlackElo "2481"]
[TimeControl "180+1"]
[EndTime "8:56:47 PDT"]
[Termination "Bykov_Egor won by resignation"]

1. e4 {[%clk 0:03:00.9]} 1... e5 {[%clk 0:02:55.5]} 2. Nf3 {[%clk 0:03:00.7]}
2... Nc6 {[%clk 0:02:54.8]} 3. Bc4 {[%clk 0:03:01.1]} 3... Bc5 {[%clk
0:02:54.1]} 4. c3 {[%clk 0:03:00.2]} 4... Nf6 {[%clk 0:02:54]} 5. d4 {[%clk
0:03:00.6]} 5... exd4 {[%clk 0:02:54.9]} 6. cxd4 {[%clk 0:03:00.5]} 6... Bb4+
{[%clk 0:02:55]} 7. Bd2 {[%clk 0:02:57.6]} 7... Bxd2+ {[%clk 0:02:54.4]} 8.
Nbxd2 {[%clk 0:02:57]} 8... d5 {[%clk 0:02:55.3]} 9. exd5 {[%clk 0:02:55.6]}
9... Nxd5 {[%clk 0:02:56.2]} 10. O-O {[%clk 0:02:47.1]} 10... O-O {[%clk
0:02:54.9]} 11. Ne5 {[%clk 0:02:47.1]} 11... Nce7 {[%clk 0:02:43]} 12. Ne4
{[%clk 0:02:39.3]} 12... a5 {[%clk 0:02:37.1]} 13. Rc1 {[%clk 0:02:32.6]} 13...
Nb6 {[%clk 0:02:33.6]} 14. Bb3 {[%clk 0:01:56.6]} 14... a4 {[%clk 0:02:29.9]}
15. Bc2 {[%clk 0:01:54.5]} 15... Nbd5 {[%clk 0:02:28]} 16. Re1 {[%clk
0:01:36.6]} 16... Nb6 {[%clk 0:02:19.2]} 17. Ng5 {[%clk 0:01:31.5]} 17... Nf5
{[%clk 0:02:15.4]} 18. Ngxf7 {[%clk 0:01:21.9]} 18... Rxf7 {[%clk 0:02:09.8]}
19. Nxf7 {[%clk 0:01:22.8]} 19... Kxf7 {[%clk 0:02:10.7]} 20. Qh5+ {[%clk
0:01:22.6]} 20... g6 {[%clk 0:01:47.6]} 21. Qxh7+ {[%clk 0:01:21.8]} 21... Kf6
{[%clk 0:01:48]} 22. g4 {[%clk 0:00:52.5]} 22... Qxd4 {[%clk 0:01:18.8]} 23.
gxf5 {[%clk 0:00:52.3]} 23... Qg4+ {[%clk 0:01:18.2]} 24. Kf1 {[%clk 0:00:52.4]}
24... Nd5 {[%clk 0:00:46.8]} 25. Qh8+ {[%clk 0:00:43.8]} 25... Kg5 {[%clk
0:00:42.4]} 26. h4+ {[%clk 0:00:42.5]} 26... Qxh4 {[%clk 0:00:38.2]} 27. Qxh4+
{[%clk 0:00:40.5]} 27... Kxh4 {[%clk 0:00:39.1]} 28. Re4+ {[%clk 0:00:27.2]}
28... Kg5 {[%clk 0:00:35.7]} 29. Rxa4 {[%clk 0:00:27]} 29... Rxa4 {[%clk
0:00:29.6]} 30. Bxa4 {[%clk 0:00:27.9]} 30... Bxf5 {[%clk 0:00:23.1]} 31. Bb3
{[%clk 0:00:27.6]} 31... c6 {[%clk 0:00:16.2]} 32. Bxd5 {[%clk 0:00:26.8]} 32...
cxd5 {[%clk 0:00:17.1]} 33. Ke2 {[%clk 0:00:24.7]} 33... Bd7 {[%clk 0:00:09.3]}
34. Ke3 {[%clk 0:00:24.2]} 34... Kf5 {[%clk 0:00:09]} 35. Rc7 {[%clk 0:00:21.9]}
35... Bc6 {[%clk 0:00:08.6]} 36. b4 {[%clk 0:00:16.9]} 36... Ke5 {[%clk
0:00:08.4]} 37. b5 {[%clk 0:00:15.3]} 37... d4+ {[%clk 0:00:07.9]} 38. Kd2
{[%clk 0:00:15.9]} 38... Bd5 {[%clk 0:00:06.4]} 39. a4 {[%clk 0:00:13.7]} 39...
g5 {[%clk 0:00:06.5]} 40. a5 {[%clk 0:00:13.6]} 40... g4 {[%clk 0:00:06.3]} 41.
a6 {[%clk 0:00:13.1]} 41... bxa6 {[%clk 0:00:06.1]} 42. bxa6 {[%clk 0:00:14]}
42... Kd6 {[%clk 0:00:06.4]} 43. Rc8 {[%clk 0:00:14.3]} 43... Kd7 {[%clk
0:00:06.3]} 44. Rc5 {[%clk 0:00:14.4]} 44... Bf3 {[%clk 0:00:05.7]} 45. a7
{[%clk 0:00:14.6]} 45... Kd6 {[%clk 0:00:05.1]} 46. Rc8 {[%clk 0:00:14.8]} 46...
d3 {[%clk 0:00:05.4]} 47. a8=Q {[%clk 0:00:15.7]} 47... Bxa8 {[%clk 0:00:05.1]}
48. Rxa8 {[%clk 0:00:16.6]} 1-0

[Event "Early-Titled-Tuesday-Blitz-May-28-2024"]
[Site "Chess.com"]
[Date "2024.05.28"]
[Round "5"]
[White "sammartin99"]
[Black "RespectfulDaveOnYouTube"]
[Result "0-1"]
[WhiteElo "2290"]
[BlackElo "2493"]
[TimeControl "180+1"]
[EndTime "8:56:47 PDT"]
[Termination "RespectfulDaveOnYouTube won by checkmate"]

1. d4 {[%clk 0:02:55.4]} 1... c5 {[%clk 0:02:54.2]} 2. d5 {[%clk 0:02:54.5]}
2... e6 {[%clk 0:02:54]} 3. c4 {[%clk 0:02:53.8]} 3... exd5 {[%clk 0:02:52.8]}
4. cxd5 {[%clk 0:02:53.4]} 4... d6 {[%clk 0:02:51.7]} 5. Nc3 {[%clk 0:02:53.1]}
5... Nf6 {[%clk 0:02:43.1]} 6. Nf3 {[%clk 0:02:52.2]} 6... g6 {[%clk 0:02:41.8]}
7. Nd2 {[%clk 0:02:48.1]} 7... Na6 {[%clk 0:02:37.3]} 8. e4 {[%clk 0:02:44.5]}
8... Nc7 {[%clk 0:02:37.3]} 9. a4 {[%clk 0:02:41]} 9... Bg7 {[%clk 0:02:36.1]}
10. Be2 {[%clk 0:02:35]} 10... O-O {[%clk 0:02:31.4]} 11. O-O {[%clk 0:02:34.8]}
11... b6 {[%clk 0:02:30.7]} 12. f3 {[%clk 0:02:27.9]} 12... Rb8 {[%clk
0:02:24.1]} 13. Nc4 {[%clk 0:02:17]} 13... Ba6 {[%clk 0:02:15.3]} 14. Qc2 {[%clk
0:02:09.7]} 14... Qd7 {[%clk 0:01:43.5]} 15. b3 {[%clk 0:01:10]} 15... Bxc4
{[%clk 0:00:51.4]} 16. bxc4 {[%clk 0:01:07.3]} 16... Na6 {[%clk 0:00:50.4]} 17.
Rb1 {[%clk 0:00:52.2]} 17... Nb4 {[%clk 0:00:48.7]} 18. Qb3 {[%clk 0:00:45.2]}
18... Nh5 {[%clk 0:00:40.3]} 19. f4 {[%clk 0:00:34.2]} 19... Bd4+ {[%clk
0:00:27]} 20. Kh1 {[%clk 0:00:33.2]} 20... Qe7 {[%clk 0:00:20.6]} 21. Bf3 {[%clk
0:00:05.8]} 21... Qh4 {[%clk 0:00:17.7]} 22. Bxh5 {[%clk 0:00:04.7]} 22... Qxh5
{[%clk 0:00:15.5]} 23. Nb5 {[%clk 0:00:04.8]} 23... Bg7 {[%clk 0:00:12.6]} 24.
Nxa7 {[%clk 0:00:02.7]} 24... Qe2 {[%clk 0:00:11.1]} 25. Bb2 {[%clk 0:00:01.1]}
25... Bxb2 {[%clk 0:00:07.6]} 26. Qxb2 {[%clk 0:00:02]} 26... Qxe4 {[%clk
0:00:03.9]} 27. Nb5 {[%clk 0:00:01]} 27... Qxc4 {[%clk 0:00:03.8]} 28. Nxd6
{[%clk 0:00:01]} 28... Qxd5 {[%clk 0:00:04.2]} 29. Nb5 {[%clk 0:00:01.1]} 29...
Rbd8 {[%clk 0:00:02.9]} 30. h3 {[%clk 0:00:01]} 30... Rfe8 {[%clk 0:00:02.7]}
31. Rbd1 {[%clk 0:00:01.2]} 31... Nd3 {[%clk 0:00:01.5]} 32. Qb1 {[%clk
0:00:01]} 32... c4 {[%clk 0:00:01.9]} 33. Qc2 {[%clk 0:00:01]} 33... Qc5 {[%clk
0:00:01.6]} 34. Nc3 {[%clk 0:00:01.4]} 34... Nf2+ {[%clk 0:00:01.5]} 35. Qxf2
{[%clk 0:00:01.3]} 35... Rxd1 {[%clk 0:00:01.3]} 36. Nxd1 {[%clk 0:00:01]} 36...
Qb4 {[%clk 0:00:01]} 37. Qc2 {[%clk 0:00:01]} 37... Rd8 {[%clk 0:00:01]} 38. Nf2
{[%clk 0:00:01]} 38... Rd2 {[%clk 0:00:01]} 39. Qc1 {[%clk 0:00:01]} 39... c3
{[%clk 0:00:01.6]} 40. Ne4 {[%clk 0:00:01.3]} 40... Qxe4 {[%clk 0:00:01.6]} 41.
Re1 {[%clk 0:00:01.2]} 41... Qxg2# {[%clk 0:00:02]} 0-1

[Event "Early-Titled-Tuesday-Blitz-May-28-2024"]
[Site "Chess.com"]
[Date "2024.05.28"]
[Round "5"]
[White "IMRosen"]
[Black "Mr_ruthless"]
[Result "0-1"]
[WhiteElo "2729"]
[BlackElo "2478"]
[TimeControl "180+1"]
[EndTime "8:56:48 PDT"]
[Termination "Mr_ruthless won by checkmate"]

1. d4 {[%clk 0:03:00.9]} 1... Nf6 {[%clk 0:02:56.1]} 2. Bf4 {[%clk 0:03:01.5]}
2... c5 {[%clk 0:02:55.5]} 3. e3 {[%clk 0:03:01.9]} 3... d5 {[%clk 0:02:51.7]}
4. Nf3 {[%clk 0:03:02.3]} 4... Nc6 {[%clk 0:02:51.4]} 5. Nbd2 {[%clk 0:03:03]}
5... e6 {[%clk 0:02:48.6]} 6. c3 {[%clk 0:03:03.2]} 6... Bd6 {[%clk 0:02:42.5]}
7. Bg3 {[%clk 0:03:03.2]} 7... O-O {[%clk 0:02:42.2]} 8. Bb5 {[%clk 0:03:03.2]}
8... cxd4 {[%clk 0:02:20.7]} 9. exd4 {[%clk 0:02:59.8]} 9... Ne4 {[%clk
0:02:08.7]} 10. Nxe4 {[%clk 0:02:40.3]} 10... dxe4 {[%clk 0:02:07.3]} 11. Nd2
{[%clk 0:02:40.7]} 11... f5 {[%clk 0:02:02.9]} 12. Bxd6 {[%clk 0:02:40.6]} 12...
Qxd6 {[%clk 0:02:03.8]} 13. Nc4 {[%clk 0:02:41.3]} 13... Qd5 {[%clk 0:01:54.3]}
14. Qb3 {[%clk 0:02:25.9]} 14... Bd7 {[%clk 0:01:45.1]} 15. Bxc6 {[%clk
0:02:15]} 15... Bxc6 {[%clk 0:01:41.7]} 16. Ne5 {[%clk 0:02:15.4]} 16... f4
{[%clk 0:01:22.1]} 17. Qxd5 {[%clk 0:02:04.9]} 17... exd5 {[%clk 0:01:21]} 18.
O-O {[%clk 0:01:58.7]} 18... Bb5 {[%clk 0:01:16.3]} 19. Rfe1 {[%clk 0:01:57]}
19... Rac8 {[%clk 0:01:16]} 20. Rac1 {[%clk 0:01:56.1]} 20... Rfe8 {[%clk
0:01:04.4]} 21. b3 {[%clk 0:01:52.6]} 21... Bd3 {[%clk 0:00:41.3]} 22. Rcd1
{[%clk 0:01:16.5]} 22... Bc2 {[%clk 0:00:19.6]} 23. Rc1 {[%clk 0:00:36]} 23...
Rxc3 {[%clk 0:00:19.8]} 24. Nd7 {[%clk 0:00:33.8]} 24... b6 {[%clk 0:00:18.7]}
25. Ne5 {[%clk 0:00:28.7]} 25... Rec8 {[%clk 0:00:18.9]} 26. f3 {[%clk
0:00:23.5]} 26... e3 {[%clk 0:00:18.3]} 27. g3 {[%clk 0:00:24.1]} 27... g5
{[%clk 0:00:17.7]} 28. Re2 {[%clk 0:00:13.3]} 28... Bf5 {[%clk 0:00:15.2]} 29.
Rxc3 {[%clk 0:00:10.3]} 29... Rxc3 {[%clk 0:00:16.1]} 30. Kg2 {[%clk 0:00:11]}
30... Rc2 {[%clk 0:00:16.2]} 31. Kf1 {[%clk 0:00:06.8]} 31... Rc1+ {[%clk
0:00:15.7]} 32. Kg2 {[%clk 0:00:04.4]} 32... Rc2 {[%clk 0:00:16]} 33. Rxc2
{[%clk 0:00:03.5]} 33... Bxc2 {[%clk 0:00:16.9]} 34. h4 {[%clk 0:00:02.9]} 34...
h6 {[%clk 0:00:16.2]} 35. b4 {[%clk 0:00:03.4]} 35... Kg7 {[%clk 0:00:15.8]} 36.
b5 {[%clk 0:00:02.5]} 36... Ba4 {[%clk 0:00:15]} 37. Nc6 {[%clk 0:00:01.7]}
37... Bxb5 {[%clk 0:00:14.6]} 38. Nxa7 {[%clk 0:00:01.9]} 38... Bc4 {[%clk
0:00:14.8]} 39. gxf4 {[%clk 0:00:01.2]} 39... gxh4 {[%clk 0:00:13.3]} 40. a3
{[%clk 0:00:01]} 40... e2 {[%clk 0:00:13.5]} 41. Kf2 {[%clk 0:00:01]} 41... h3
{[%clk 0:00:14.2]} 42. Nc8 {[%clk 0:00:01]} 42... h2 {[%clk 0:00:14.6]} 43. f5
{[%clk 0:00:01.4]} 43... h1=Q {[%clk 0:00:14.7]} 44. f6+ {[%clk 0:00:02.3]}
44... Kf8 {[%clk 0:00:14.7]} 45. Ke3 {[%clk 0:00:01]} 45... e1=Q+ {[%clk
0:00:15.6]} 46. Kf4 {[%clk 0:00:01.1]} 46... Qhh4+ {[%clk 0:00:15.6]} 47. Kf5
{[%clk 0:00:01]} 47... Qg5# {[%clk 0:00:16.5]} 0-1

[Event "Early-Titled-Tuesday-Blitz-May-28-2024"]
[Site "Chess.com"]
[Date "2024.05.28"]
[Round "5"]
[White "HanSchut"]
[Black "abelmat"]
[Result "0-1"]
[WhiteElo "2338"]
[BlackElo "2069"]
[TimeControl "180+1"]
[EndTime "8:56:48 PDT"]
[Termination "abelmat won on time"]

1. e4 {[%clk 0:02:55.3]} 1... e6 {[%clk 0:02:59.8]} 2. d4 {[%clk 0:02:55.3]}
2... d5 {[%clk 0:03:00.7]} 3. e5 {[%clk 0:02:55.8]} 3... c5 {[%clk 0:03:00.6]}
4. c3 {[%clk 0:02:56.3]} 4... Qb6 {[%clk 0:03:00.8]} 5. Nf3 {[%clk 0:02:56.2]}
5... Bd7 {[%clk 0:03:00.2]} 6. Bd3 {[%clk 0:02:54.8]} 6... cxd4 {[%clk
0:03:00.4]} 7. cxd4 {[%clk 0:02:55]} 7... Bb5 {[%clk 0:03:00.6]} 8. O-O {[%clk
0:02:51]} 8... Bxd3 {[%clk 0:03:00.4]} 9. Qxd3 {[%clk 0:02:51.9]} 9... Nc6
{[%clk 0:03:01.1]} 10. Nc3 {[%clk 0:02:50.4]} 10... Nge7 {[%clk 0:03:01.1]} 11.
Rb1 {[%clk 0:02:44.7]} 11... Na5 {[%clk 0:03:00.5]} 12. Qb5+ {[%clk 0:02:30.9]}
12... Nec6 {[%clk 0:02:50.9]} 13. Qxb6 {[%clk 0:02:11.9]} 13... axb6 {[%clk
0:02:51.7]} 14. Nb5 {[%clk 0:02:05.1]} 14... Kd7 {[%clk 0:02:40.9]} 15. b3
{[%clk 0:02:04]} 15... Be7 {[%clk 0:02:34.7]} 16. Bd2 {[%clk 0:01:57.6]} 16...
h6 {[%clk 0:02:33]} 17. Rfc1 {[%clk 0:01:56.8]} 17... Rhc8 {[%clk 0:02:29.3]}
18. Kf1 {[%clk 0:01:49.9]} 18... Nb4 {[%clk 0:02:21.5]} 19. Bxb4 {[%clk
0:01:34.8]} 19... Bxb4 {[%clk 0:02:20.7]} 20. Ke2 {[%clk 0:01:28.7]} 20... Be7
{[%clk 0:02:15.4]} 21. Kd3 {[%clk 0:01:26.1]} 21... Nc6 {[%clk 0:02:15.3]} 22.
a4 {[%clk 0:01:20.4]} 22... Nb4+ {[%clk 0:02:06.9]} 23. Kd2 {[%clk 0:01:20.5]}
23... Na2 {[%clk 0:01:56.1]} 24. Rxc8 {[%clk 0:01:17.3]} 24... Rxc8 {[%clk
0:01:55.1]} 25. Rb2 {[%clk 0:01:15.4]} 25... Bb4+ {[%clk 0:01:46.2]} 26. Ke3
{[%clk 0:01:02.9]} 26... Nc3 {[%clk 0:01:35.5]} 27. Nxc3 {[%clk 0:00:56.8]}
27... Rxc3+ {[%clk 0:01:36.4]} 28. Ke2 {[%clk 0:00:52]} 28... Ba3 {[%clk
0:01:27.3]} 29. Rb1 {[%clk 0:00:50.9]} 29... Rc2+ {[%clk 0:01:23.2]} 30. Ke3
{[%clk 0:00:44.2]} 30... Rc3+ {[%clk 0:01:06]} 31. Kd2 {[%clk 0:00:42.1]} 31...
Bb4 {[%clk 0:01:05.2]} 32. Ke2 {[%clk 0:00:41.9]} 32... Rc2+ {[%clk 0:01:04.1]}
33. Ke3 {[%clk 0:00:41.8]} 33... Rc3+ {[%clk 0:00:51.8]} 34. Ke2 {[%clk
0:00:39.9]} 34... Rc2+ {[%clk 0:00:49.7]} 35. Ke3 {[%clk 0:00:40.3]} 35... Rc3+
{[%clk 0:00:47.4]} 36. Kf4 {[%clk 0:00:40]} 36... Rc2 {[%clk 0:00:46.4]} 37. Kg3
{[%clk 0:00:39.7]} 37... Rc3 {[%clk 0:00:44]} 38. h4 {[%clk 0:00:39.6]} 38...
Rd3 {[%clk 0:00:38.6]} 39. Kf4 {[%clk 0:00:29.6]} 39... Bc3 {[%clk 0:00:35.7]}
40. b4 {[%clk 0:00:13.4]} 40... Bxd4 {[%clk 0:00:33]} 41. a5 {[%clk 0:00:13.9]}
41... Bxf2 {[%clk 0:00:30.1]} 42. axb6 {[%clk 0:00:12]} 42... Bxb6 {[%clk
0:00:29.5]} 43. g3 {[%clk 0:00:12.3]} 43... Rc3 {[%clk 0:00:27.3]} 44. h5 {[%clk
0:00:10.1]} 44... Rc4+ {[%clk 0:00:27.6]} 0-1

[Event "Early-Titled-Tuesday-Blitz-May-28-2024"]
[Site "Chess.com"]
[Date "2024.05.28"]
[Round "5"]
[White "Losingexperience"]
[Black "chrisclaireredfield"]
[Result "1-0"]
[WhiteElo "2769"]
[BlackElo "2556"]
[TimeControl "180+1"]
[EndTime "8:56:53 PDT"]
[Termination "Losingexperience won on time"]

1. e4 {[%clk 0:03:00.6]} 1... e5 {[%clk 0:02:59.9]} 2. Nf3 {[%clk 0:02:59.8]}
2... Nf6 {[%clk 0:03:00.3]} 3. d4 {[%clk 0:02:53.6]} 3... Nxe4 {[%clk
0:03:00.3]} 4. dxe5 {[%clk 0:02:53.2]} 4... d5 {[%clk 0:02:57.7]} 5. Bd3 {[%clk
0:02:52]} 5... Nc5 {[%clk 0:02:48.1]} 6. Be2 {[%clk 0:02:50.7]} 6... Be7 {[%clk
0:02:47.2]} 7. O-O {[%clk 0:02:50.3]} 7... Bg4 {[%clk 0:02:41]} 8. h3 {[%clk
0:02:48.9]} 8... Bxf3 {[%clk 0:02:41.1]} 9. Bxf3 {[%clk 0:02:49.8]} 9... c6
{[%clk 0:02:41.4]} 10. Re1 {[%clk 0:02:49.6]} 10... O-O {[%clk 0:02:41.1]} 11.
Nc3 {[%clk 0:02:45.8]} 11... Nbd7 {[%clk 0:02:40.5]} 12. Bf4 {[%clk 0:02:19]}
12... a5 {[%clk 0:02:38.7]} 13. a4 {[%clk 0:02:18.1]} 13... Nb6 {[%clk
0:02:33.2]} 14. b3 {[%clk 0:02:16.1]} 14... Ne6 {[%clk 0:02:31.3]} 15. Bd2
{[%clk 0:02:11.6]} 15... Bb4 {[%clk 0:02:29.4]} 16. Ne2 {[%clk 0:02:07.5]} 16...
Qe7 {[%clk 0:02:04.7]} 17. Ng3 {[%clk 0:02:02.6]} 17... g6 {[%clk 0:02:01.9]}
18. c3 {[%clk 0:01:56.1]} 18... Bc5 {[%clk 0:02:01.2]} 19. Bh6 {[%clk
0:01:56.5]} 19... Rfe8 {[%clk 0:01:59.5]} 20. Qd2 {[%clk 0:01:57.1]} 20... Rad8
{[%clk 0:01:39.5]} 21. Kh2 {[%clk 0:01:36.4]} 21... Qc7 {[%clk 0:01:38.8]} 22.
Bg4 {[%clk 0:01:17.7]} 22... d4 {[%clk 0:01:31.5]} 23. Bxe6 {[%clk 0:01:08.7]}
23... Rxe6 {[%clk 0:01:27.6]} 24. Rad1 {[%clk 0:00:55.8]} 24... Nd5 {[%clk
0:01:20.2]} 25. cxd4 {[%clk 0:00:37.3]} 25... Bb4 {[%clk 0:01:20.1]} 26. Qg5
{[%clk 0:00:37.4]} 26... Bxe1 {[%clk 0:01:17.1]} 27. Rxe1 {[%clk 0:00:35.3]}
27... f6 {[%clk 0:01:02.5]} 28. Qg4 {[%clk 0:00:33]} 28... Rde8 {[%clk
0:01:01.9]} 29. f4 {[%clk 0:00:30.6]} 29... Kh8 {[%clk 0:00:53.5]} 30. f5 {[%clk
0:00:26.4]} 30... gxf5 {[%clk 0:00:52.4]} 31. Nxf5 {[%clk 0:00:27.3]} 31... Rg8
{[%clk 0:00:46.2]} 32. Bg7+ {[%clk 0:00:21.7]} 32... Rxg7 {[%clk 0:00:44.2]} 33.
Nxg7 {[%clk 0:00:22.6]} 33... Re7 {[%clk 0:00:26]} 34. Nf5 {[%clk 0:00:22.5]}
34... Re8 {[%clk 0:00:24.3]} 35. Nd6 {[%clk 0:00:19.9]} 35... Rg8 {[%clk
0:00:22.1]} 36. Qh5 {[%clk 0:00:17.4]} 36... Rxg2+ {[%clk 0:00:16.1]} 37. Kh1
{[%clk 0:00:15.7]} 37... Rg6 {[%clk 0:00:09.3]} 38. Qf5 {[%clk 0:00:06.5]} 38...
Qe7 {[%clk 0:00:02.4]} 39. Nc8 {[%clk 0:00:05.4]} 39... Qg7 {[%clk 0:00:01.5]}
40. Rf1 {[%clk 0:00:04.9]} 40... Qh6 {[%clk 0:00:01]} 41. Nd6 {[%clk 0:00:04.6]}
1-0

[Event "Early-Titled-Tuesday-Blitz-May-28-2024"]
[Site "Chess.com"]
[Date "2024.05.28"]
[Round "5"]
[White "rionelG"]
[Black "noblerone"]
[Result "0-1"]
[WhiteElo "2305"]
[BlackElo "2529"]
[TimeControl "180+1"]
[EndTime "8:56:53 PDT"]
[Termination "noblerone won on time"]

1. e4 {[%clk 0:02:19.4]} 1... c5 {[%clk 0:02:59.6]} 2. g3 {[%clk 0:02:19.3]}
2... e6 {[%clk 0:03:00.5]} 3. Bg2 {[%clk 0:02:18.7]} 3... Nc6 {[%clk 0:03:00.8]}
4. Ne2 {[%clk 0:02:18]} 4... d5 {[%clk 0:02:59.1]} 5. exd5 {[%clk 0:02:17.6]}
5... exd5 {[%clk 0:02:59.8]} 6. O-O {[%clk 0:02:18]} 6... Nf6 {[%clk 0:02:59]}
7. d4 {[%clk 0:02:17.9]} 7... Be7 {[%clk 0:02:58.9]} 8. dxc5 {[%clk 0:02:17.5]}
8... Bxc5 {[%clk 0:02:59.8]} 9. Nd2 {[%clk 0:02:12.6]} 9... O-O {[%clk
0:02:58.5]} 10. Nb3 {[%clk 0:02:13.1]} 10... Be7 {[%clk 0:02:54.3]} 11. Ned4
{[%clk 0:02:12.5]} 11... h6 {[%clk 0:02:49.7]} 12. h3 {[%clk 0:02:04.3]} 12...
Re8 {[%clk 0:02:44]} 13. c3 {[%clk 0:02:03.8]} 13... Bd7 {[%clk 0:02:35.9]} 14.
Bf4 {[%clk 0:02:00.1]} 14... a6 {[%clk 0:02:30.8]} 15. Re1 {[%clk 0:01:58.1]}
15... Qc8 {[%clk 0:02:30]} 16. Kh2 {[%clk 0:01:44.3]} 16... Nxd4 {[%clk
0:02:15]} 17. Nxd4 {[%clk 0:01:42.3]} 17... Bc6 {[%clk 0:02:13.2]} 18. Qd3
{[%clk 0:01:37.6]} 18... Bc5 {[%clk 0:01:50.6]} 19. Rad1 {[%clk 0:01:33.1]}
19... Rxe1 {[%clk 0:01:46.2]} 20. Rxe1 {[%clk 0:01:31.1]} 20... Qd7 {[%clk
0:01:46.6]} 21. Rd1 {[%clk 0:00:48.5]} 21... Re8 {[%clk 0:01:41.7]} 22. Be3
{[%clk 0:00:48.4]} 22... Bd6 {[%clk 0:01:19.9]} 23. Nf5 {[%clk 0:00:45.7]} 23...
Bb5 {[%clk 0:01:09.3]} 24. Qc2 {[%clk 0:00:37.9]} 24... Bb8 {[%clk 0:00:55.5]}
25. Nd4 {[%clk 0:00:27.3]} 25... Bc6 {[%clk 0:00:44.9]} 26. Qf5 {[%clk 0:00:22]}
26... Qd6 {[%clk 0:00:34.8]} 27. Bf4 {[%clk 0:00:20.3]} 27... Qd8 {[%clk
0:00:31.3]} 28. Bxb8 {[%clk 0:00:19.6]} 28... Qxb8 {[%clk 0:00:30.7]} 29. Qd3
{[%clk 0:00:18.3]} 29... Qe5 {[%clk 0:00:22.8]} 30. Nf5 {[%clk 0:00:13.7]} 30...
a5 {[%clk 0:00:19.4]} 31. Ne3 {[%clk 0:00:13.4]} 31... Ne4 {[%clk 0:00:14.4]}
32. Bxe4 {[%clk 0:00:12.6]} 32... dxe4 {[%clk 0:00:15.3]} 33. Qd4 {[%clk
0:00:11.2]} 33... Qb5 {[%clk 0:00:15]} 34. c4 {[%clk 0:00:10.2]} 34... Qg5
{[%clk 0:00:14]} 35. Kg1 {[%clk 0:00:08.6]} 35... h5 {[%clk 0:00:13.4]} 36. h4
{[%clk 0:00:08.6]} 36... Qg6 {[%clk 0:00:14]} 37. Qd6 {[%clk 0:00:08.3]} 37...
Qxd6 {[%clk 0:00:11.5]} 38. Rxd6 {[%clk 0:00:07.6]} 38... Rc8 {[%clk 0:00:11.9]}
39. b3 {[%clk 0:00:06.9]} 39... g6 {[%clk 0:00:11.9]} 40. Rd4 {[%clk 0:00:04.8]}
40... Kf8 {[%clk 0:00:11.3]} 41. Kf1 {[%clk 0:00:04.9]} 41... Ke7 {[%clk
0:00:11.4]} 42. Ke2 {[%clk 0:00:05]} 42... Ke6 {[%clk 0:00:11.8]} 43. Nd1 {[%clk
0:00:03.1]} 43... Ke5 {[%clk 0:00:10.7]} 44. Ke3 {[%clk 0:00:03.4]} 44... f5
{[%clk 0:00:08.9]} 45. Nc3 {[%clk 0:00:02.6]} 45... Ra8 {[%clk 0:00:07.9]} 0-1

[Event "Early-Titled-Tuesday-Blitz-May-28-2024"]
[Site "Chess.com"]
[Date "2024.05.28"]
[Round "5"]
[White "Smiechu"]
[Black "KatakuriDono"]
[Result "1-0"]
[WhiteElo "2427"]
[BlackElo "2267"]
[TimeControl "180+1"]
[EndTime "8:56:54 PDT"]
[Termination "Smiechu won by resignation"]

1. e4 {[%clk 0:03:00.9]} 1... c5 {[%clk 0:02:59.9]} 2. Nf3 {[%clk 0:03:00.3]}
2... Nc6 {[%clk 0:03:00.1]} 3. d4 {[%clk 0:02:59.6]} 3... cxd4 {[%clk 0:03:01]}
4. Nxd4 {[%clk 0:03:00.1]} 4... Qb6 {[%clk 0:03:01.2]} 5. Nb3 {[%clk 0:02:58.9]}
5... Nf6 {[%clk 0:03:00.2]} 6. Bd3 {[%clk 0:02:59.1]} 6... d5 {[%clk 0:02:56]}
7. exd5 {[%clk 0:02:52.3]} 7... Nxd5 {[%clk 0:02:49.7]} 8. O-O {[%clk
0:02:52.3]} 8... g6 {[%clk 0:02:49.4]} 9. c4 {[%clk 0:02:44]} 9... Nf6 {[%clk
0:02:45.8]} 10. Be3 {[%clk 0:02:42.6]} 10... Qc7 {[%clk 0:02:43.9]} 11. Nc3
{[%clk 0:02:41.7]} 11... Bg7 {[%clk 0:02:38.2]} 12. Nd5 {[%clk 0:02:38.2]} 12...
Qe5 {[%clk 0:02:14]} 13. f4 {[%clk 0:02:17.5]} 13... Qb8 {[%clk 0:01:56.1]} 14.
f5 {[%clk 0:02:14.9]} 14... b6 {[%clk 0:01:26]} 15. Bf4 {[%clk 0:02:13.5]} 15...
Qb7 {[%clk 0:01:21.5]} 16. Nc7+ {[%clk 0:02:12.5]} 16... Kf8 {[%clk 0:01:21.3]}
17. Nxa8 {[%clk 0:02:11.5]} 17... Qxa8 {[%clk 0:01:22]} 18. Qf3 {[%clk
0:01:59.7]} 18... Bb7 {[%clk 0:01:18.3]} 19. Qe2 {[%clk 0:01:43.7]} 19... Nh5
{[%clk 0:01:03.6]} 20. Bd2 {[%clk 0:01:37.7]} 20... Nd4 {[%clk 0:00:55.9]} 21.
Qf2 {[%clk 0:01:34.8]} 21... Qd8 {[%clk 0:00:29]} 22. fxg6 {[%clk 0:01:23.9]}
22... Bf6 {[%clk 0:00:29.1]} 23. Bh6+ {[%clk 0:01:20.3]} 23... Ng7 {[%clk
0:00:28.5]} 24. gxh7 {[%clk 0:01:12.7]} 24... Nxb3 {[%clk 0:00:24.5]} 25. axb3
{[%clk 0:01:04.9]} 25... Qxd3 {[%clk 0:00:24.1]} 26. Rad1 {[%clk 0:01:03.3]}
26... Bd4 {[%clk 0:00:19.7]} 27. Qxd4 {[%clk 0:00:56.4]} 27... Qxd4+ {[%clk
0:00:19.6]} 28. Rxd4 {[%clk 0:00:56.6]} 28... Bc6 {[%clk 0:00:16.3]} 29. Rd8+
{[%clk 0:00:54.8]} 29... Be8 {[%clk 0:00:16.3]} 30. Rxe8+ {[%clk 0:00:46.2]}
30... Kxe8 {[%clk 0:00:17.2]} 31. Bxg7 {[%clk 0:00:46.6]} 31... Rxh7 {[%clk
0:00:17.9]} 32. Bd4 {[%clk 0:00:46.6]} 32... Rh5 {[%clk 0:00:18.2]} 33. g4
{[%clk 0:00:45.9]} 33... Rg5 {[%clk 0:00:15.6]} 34. h3 {[%clk 0:00:45.8]} 34...
b5 {[%clk 0:00:15.1]} 35. Kg2 {[%clk 0:00:45.3]} 35... bxc4 {[%clk 0:00:14]} 36.
bxc4 {[%clk 0:00:45]} 36... a5 {[%clk 0:00:14.9]} 37. Kg3 {[%clk 0:00:44.8]}
37... a4 {[%clk 0:00:14.6]} 38. h4 {[%clk 0:00:44.9]} 38... Ra5 {[%clk
0:00:14.6]} 39. h5 {[%clk 0:00:44.3]} 39... a3 {[%clk 0:00:15.1]} 40. bxa3
{[%clk 0:00:43.8]} 40... Rxa3+ {[%clk 0:00:16]} 41. Kf4 {[%clk 0:00:43.6]} 41...
f6 {[%clk 0:00:16.5]} 42. Kf5 {[%clk 0:00:39.2]} 42... Ra5+ {[%clk 0:00:14.8]}
43. Kg6 {[%clk 0:00:38.9]} 43... Rg5+ {[%clk 0:00:13.5]} 44. Kh7 {[%clk
0:00:35]} 44... Rxg4 {[%clk 0:00:13.9]} 45. Rd1 {[%clk 0:00:35.2]} 45... Kf7
{[%clk 0:00:13.8]} 46. h6 {[%clk 0:00:34.1]} 46... f5 {[%clk 0:00:07.2]} 47. c5
{[%clk 0:00:32.6]} 47... f4 {[%clk 0:00:04.3]} 48. c6 {[%clk 0:00:32.2]} 48...
Rg8 {[%clk 0:00:03.3]} 49. c7 {[%clk 0:00:31.3]} 49... Rc8 {[%clk 0:00:03.2]}
50. Be5 {[%clk 0:00:31.3]} 50... f3 {[%clk 0:00:03.1]} 51. Rf1 {[%clk
0:00:31.3]} 51... Ke6 {[%clk 0:00:03.5]} 52. Bg3 {[%clk 0:00:30.3]} 52... Rf8
{[%clk 0:00:02.4]} 53. Rxf3 {[%clk 0:00:30]} 53... Rxf3 {[%clk 0:00:02.2]} 54.
c8=Q+ {[%clk 0:00:30.3]} 54... Kf7 {[%clk 0:00:02.6]} 55. Qg8+ {[%clk
0:00:27.9]} 55... Kf6 {[%clk 0:00:02.5]} 56. Qf8+ {[%clk 0:00:27.8]} 1-0